[Event "26th OIBM 2023"]
[Site "Gmund am Tegernsee"]
[Date "2023.10.31"]
[Round "4.31"]
[White "Arnhold, Steffi"]
[Black "Geist, Denis"]
[Result "1-0"]
[ECO "B99"]
[WhiteElo "2142"]
[BlackElo "1595"]
[Annotator "RC"]
[PlyCount "101"]
[EventDate "2023.10.04"]
[EventType "swiss"]
[EventCountry "GER"]
[SourceTitle "playchess.com"]
[Source "ChessBase"]
[SourceQuality "1"]
[TimeControl "40/5400+30:1800+30"]

1. e4 {[%emt 0:00:03]} c5 {[%emt 0:00:23]} 2. Nf3 {[%emt 0:00:06]} d6 {[%emt 0:00:10]} 3. d4 {[%emt 0:00:06]} cxd4 {[%emt 0:00:17]} 4. Nxd4 {[%emt 0:00:06]} Nf6 {[%emt 0:00:31]} 5. Nc3 {[%emt 0:00:14]} a6 {[%emt 0:00:17]} 6. Bg5 {[%emt 0:00:32]} e6 {[%emt 0:00:30]} 7. f4 {[%emt 0:00:10]} Be7 {[%emt 0:00:11]} 8. Qf3 {[%emt 0:00:34]} Qc7 {[%emt 0:00:53]} 9. O-O-O {[%emt 0:00:57]} Nbd7 {[%emt 0:00:28]} 10. Bd3 {[%emt 0:03:24]} b5 {[%emt 0:00:33]} 11. Rhe1 {[%emt 0:00:58]} Bb7 {[%emt 0:01:12]} 12. Qg3 {[%emt 0:06:21]} b4 {[%emt 0:02:28]} 13. Nd5 {[%emt 0:12:57]} exd5 {[%emt 0:01:18]} 14. exd5 {[%emt 0:20:36]} Kd8 {[%emt 0:02:01]} 15. Qe3 {[%emt 0:11:00]} Re8 {[%emt 0:11:59]} 16. Nf5 {[%emt 0:01:22]} Nxd5 {[%emt 0:13:24]} 17. Qe2 {[%emt 0:04:35]} h6 {[%emt 0:21:37]} 18. Nxe7 {[%emt 0:16:09]} hxg5 {[%emt 0:00:44]} 19. Nc6+ {[%emt 0:00:07]} Qxc6 {[%emt 0:00:16]} 20. Qxe8+ {[%emt 0:00:04]} Kc7 {[%emt 0:00:06]} 21. Qxf7 {[%emt 0:00:08]} Nxf4 {[%emt 0:05:24]} 22. Be4 {[%emt 0:04:28]} d5 {[%emt 0:01:48]} 23. Bf3 {[%emt 0:00:08]} Rc8 {[%emt 0:03:44]} 24. Re8 {[%emt 0:00:14]} Rxe8 {[%emt 0:08:42]} 25. Qxe8 {[%emt 0:00:05]} Kb6 {[%emt 0:02:33]} 26. g3 {[%emt 0:02:23]} Qe6 {[%emt 0:03:44]} 27. Qd8+ {[%emt 0:00:09]} Kc6 {[%emt 0:00:22]} 28. Kb1 {[%emt 0:00:21]} g4 {[%emt 0:01:31]} 29. Bh1 {[%emt 0:01:30]} Qe2 {[%emt 0:00:13]} 30. Rc1 {[%emt 0:00:09]} Ng2 {[%emt 0:02:14]} 31. Qg5 {[%emt 0:03:12]} Ne3 {[%emt 0:01:36]} 32. Qe7 {[%emt 0:00:40]} Nc5 {[%emt 0:04:51]} 33. Qe5 {[%emt 0:02:05]} Kb6 {[%emt 0:03:10]} 34. Qd4 {[%emt 0:01:14]} Kb5 {[%emt 0:00:49]} 35. Qe5 {[%emt 0:04:42]} Na4 {[%emt 0:01:23]} 36. Qe8+ {[%emt 0:00:31]} Bc6 {[%emt 0:00:01]} 37. Qb8+ {[%emt 0:00:23]} Nb6 {[%emt 0:00:15]} 38. b3 {[%emt 0:03:02]} Qxh2 {[%emt 0:00:55]} 39. a4+ {[%emt 0:02:03]} bxa3 {[%emt 0:00:20]} 40. Qd6 {[%emt 0:01:56]} a2+ {[%emt 0:04:10]} 41. Kxa2 {[%emt 0:30:17]} Nxc2 {[%emt 0:04:19]} 42. Kb1 {[%emt 0:00:00]} Bb7 {[%emt 0:19:01]} 43. Qf8 {[%emt 0:00:00]} a5 {[%emt 0:00:39]} 44. Qf1+ {[%emt 0:00:00]} Nc4 {[%emt 0:06:18]} 45. Rxc2 {[%emt 0:00:00]} Qxh1 {[%emt 0:03:39]} 46. Qxh1 {[%emt 0:00:00]} Na3+ {[%emt 0:00:06]} 47. Kb2 {[%emt 0:00:00]} Nxc2 {[%emt 0:00:05]} 48. Kxc2 {[%emt 0:00:00]} Bc6 {[%emt 0:01:01]} 49. Qd1 {[%emt 0:00:00]} a4 {[%emt 0:00:16]} 50. bxa4+ {[%emt 0:00:00]} Kxa4 {[%emt 0:00:04]} 51. Qxg4+ {[%emt 0:00:00]} 1-0

[Event "26th OIBM 2023"]
[Site "Gmund am Tegernsee"]
[Date "2023.10.31"]
[Round "4.32"]
[White "Mirzoyan, Davit A."]
[Black "Nagel, Bernhard"]
[Result "0-1"]
[ECO "E05"]
[WhiteElo "1463"]
[BlackElo "2142"]
[Annotator "RC"]
[PlyCount "102"]
[EventDate "2023.10.04"]
[EventType "swiss"]
[EventCountry "GER"]
[SourceTitle "playchess.com"]
[Source "ChessBase"]
[SourceQuality "1"]
[TimeControl "40/5400+30:1800+30"]

1. Nf3 {[%emt 0:00:05]} Nf6 {[%emt 0:00:21]} 2. g3 {[%emt 0:00:05]} d5 {[%emt 0:00:54]} 3. Bg2 {[%emt 0:00:07]} e6 {[%emt 0:00:05]} 4. O-O {[%emt 0:00:35]} Be7 {[%emt 0:00:10]} 5. d4 {[%emt 0:01:07]} O-O {[%emt 0:00:13]} 6. c4 {[%emt 0:00:42]} dxc4 {[%emt 0:01:59]} 7. Nbd2 {[%emt 0:00:12]} b5 {[%emt 0:14:48]} 8. a4 {[%emt 0:03:37]} c6 {[%emt 0:01:00]} 9. e4 {[%emt 0:13:53]} Nbd7 {[%emt 0:10:07]} 10. Qc2 {[%emt 0:02:25]} Bb7 {[%emt 0:05:35]} 11. b3 {[%emt 0:20:36]} cxb3 {[%emt 0:02:54]} 12. Qxb3 {[%emt 0:03:14]} Ba6 {[%emt 0:06:57]} 13. Rd1 {[%emt 0:02:08]} bxa4 {[%emt 0:00:52]} 14. Qxa4 {[%emt 0:02:29]} Be2 {[%emt 0:00:55]} 15. Re1 {[%emt 0:00:04]} Bb5 {[%emt 0:00:08]} 16. Qc2 {[%emt 0:03:34]} h6 {[%emt 0:03:44]} 17. Ba3 {[%emt 0:07:26]} a5 {[%emt 0:02:56]} 18. Bxe7 {[%emt 0:02:56]} Qxe7 {[%emt 0:00:30]} 19. Nc4 {[%emt 0:00:05]} Bxc4 {[%emt 0:08:00]} 20. Qxc4 {[%emt 0:00:05]} Qb4 {[%emt 0:00:27]} 21. Qxc6 {[%emt 0:01:35]} Rfc8 {[%emt 0:00:59]} 22. Qa4 {[%emt 0:00:13]} Qxa4 {[%emt 0:00:47]} 23. Rxa4 {[%emt 0:00:05]} Nb6 {[%emt 0:12:47]} 24. Ra2 {[%emt 0:00:07]} Nc4 {[%emt 0:03:46]} 25. Nd2 {[%emt 0:20:48]} a4 {[%emt 0:04:54]} 26. e5 {[%emt 0:05:18]} Nd5 {[%emt 0:00:08]} 27. Nxc4 {[%emt 0:00:45]} Rxc4 {[%emt 0:00:08]} 28. Bxd5 {[%emt 0:01:51]} exd5 {[%emt 0:00:05]} 29. Rd1 {[%emt 0:00:11]} Rb8 {[%emt 0:02:33]} 30. Ra3 {[%emt 0:03:22]} Rbb4 {[%emt 0:00:56]} 31. Rad3 {[%emt 0:00:20]} g5 {[%emt 0:01:02]} 32. h3 {[%emt 0:01:14]} Rb3 {[%emt 0:02:10]} 33. Kg2 {[%emt 0:01:30]} Rcb4 {[%emt 0:01:21]} 34. Kf1 {[%emt 0:03:33]} a3 {[%emt 0:01:10]} 35. Rxb3 {[%emt 0:00:08]} Rxb3 {[%emt 0:00:06]} 36. Ra1 {[%emt 0:00:10]} Kg7 {[%emt 0:00:23]} 37. Ra2 {[%emt 0:00:07]} Kg6 {[%emt 0:00:12]} 38. g4 {[%emt 0:01:00]} Rxh3 {[%emt 0:00:08]} 39. Ke2 {[%emt 0:00:13]} h5 {[%emt 0:00:59]} 40. gxh5+ {[%emt 0:00:28]} Kxh5 {[%emt 0:00:06]} 41. Rc2 {[%emt 0:31:34]} Rb3 {[%emt 0:30:53]} 42. Rc7 {[%emt 0:00:00]} a2 {[%emt 0:00:00]} 43. Ra7 {[%emt 0:00:00]} Rb2+ {[%emt 0:00:00]} 44. Kf3 {[%emt 0:00:00]} Kh4 {[%emt 0:00:00]} 45. Ra8 {[%emt 0:00:00]} g4+ {[%emt 0:00:00]} 46. Ke3 {[%emt 0:00:00]} Kh3 {[%emt 0:00:00]} 47. Ra3 {[%emt 0:00:00]} Rb3+ {[%emt 0:00:00]} 48. Rxb3 {[%emt 0:00:00]} a1=Q {[%emt 0:00:00]} 49. Kf4+ {[%emt 0:00:00]} Kh4 {[%emt 0:00:00]} 50. Rd3 {[%emt 0:00:00]} Qc1+ {[%emt 0:00:00]} 51. Re3 {[%emt 0:00:00]} Qd2 {[%emt 0:17:52]} 0-1

[Event "26th OIBM 2023"]
[Site "Gmund am Tegernsee"]
[Date "2023.10.31"]
[Round "4.33"]
[White "Oyberman, Iliia"]
[Black "Garner, Isaac"]
[Result "0-1"]
[ECO "D02"]
[WhiteElo "1638"]
[BlackElo "2309"]
[Annotator "RC"]
[PlyCount "106"]
[EventDate "2023.10.04"]
[EventType "swiss"]
[EventCountry "GER"]
[SourceTitle "playchess.com"]
[Source "ChessBase"]
[SourceQuality "1"]
[TimeControl "40/5400+30:1800+30"]

1. d4 {[%emt 0:00:02]} Nf6 {[%emt 0:00:11]} 2. Bf4 {[%emt 0:00:04]} d5 {[%emt 0:00:15]} 3. e3 {[%emt 0:00:05]} c5 {[%emt 0:00:09]} 4. c3 {[%emt 0:00:04]} Nc6 {[%emt 0:01:49]} 5. Nd2 {[%emt 0:00:20]} e6 {[%emt 0:00:11]} 6. Ngf3 {[%emt 0:02:02]} Nh5 {[%emt 0:02:24]} 7. Bg3 {[%emt 0:00:42]} Nxg3 {[%emt 0:04:34]} 8. hxg3 {[%emt 0:00:03]} Be7 {[%emt 0:09:03]} 9. Bd3 {[%emt 0:02:49]} g6 {[%emt 0:01:04]} 10. Qe2 {[%emt 0:24:19]} Qb6 {[%emt 0:07:31]} 11. O-O-O {[%emt 0:18:05]} Bd7 {[%emt 0:21:09]} 12. Rh2 {[%emt 0:03:24]} Rc8 {[%emt 0:16:34]} 13. Bc2 {[%emt 0:02:57]} Qa5 {[%emt 0:02:52]} 14. Rdh1 {[%emt 0:02:16]} Qxa2 {[%emt 0:02:46]} 15. Rxh7 {[%emt 0:07:30]} Rf8 {[%emt 0:02:50]} 16. Rh8 {[%emt 0:04:25]} cxd4 {[%emt 0:04:37]} 17. exd4 {[%emt 0:02:01]} a5 {[%emt 0:04:27]} 18. Rxf8+ {[%emt 0:07:19]} Bxf8 {[%emt 0:00:05]} 19. Rh8 {[%emt 0:14:49]} a4 {[%emt 0:02:21]} 20. Nb1 {[%emt 0:01:50]} Na5 {[%emt 0:02:57]} 21. Nfd2 {[%emt 0:01:19]} Nc4 {[%emt 0:03:04]} 22. Nxc4 {[%emt 0:00:06]} Qxc4 {[%emt 0:00:05]} 23. Qxc4 {[%emt 0:00:54]} Rxc4 {[%emt 0:00:30]} 24. b3 {[%emt 0:01:05]} axb3 {[%emt 0:00:45]} 25. Bxb3 {[%emt 0:00:02]} Rc7 {[%emt 0:00:30]} 26. Kb2 {[%emt 0:01:57]} Ke7 {[%emt 0:00:11]} 27. Nd2 {[%emt 0:00:13]} Bg7 {[%emt 0:01:08]} 28. Rh1 {[%emt 0:00:15]} Be8 {[%emt 0:03:29]} 29. Re1 {[%emt 0:00:14]} Kf8 {[%emt 0:02:20]} 30. Nf3 {[%emt 0:00:11]} b5 {[%emt 0:00:05]} 31. Ne5 {[%emt 0:00:32]} Rb7 {[%emt 0:00:50]} 32. Nd3 {[%emt 0:01:13]} b4 {[%emt 0:01:12]} 33. Nxb4 {[%emt 0:00:11]} Bxd4 {[%emt 0:02:26]} 34. cxd4 {[%emt 0:00:18]} Rxb4 {[%emt 0:00:03]} 35. Kc3 {[%emt 0:00:03]} Rb7 {[%emt 0:00:03]} 36. Rc1 {[%emt 0:00:18]} Bb5 {[%emt 0:01:03]} 37. Bd1 {[%emt 0:00:33]} Bf1 {[%emt 0:00:54]} 38. Bf3 {[%emt 0:00:14]} Bc4 {[%emt 0:00:07]} 39. Kd2 {[%emt 0:00:54]} Rb3 {[%emt 0:00:54]} 40. Rc3 {[%emt 0:00:05]} Rb4 {[%emt 0:00:18]} 41. g4 {[%emt 0:30:33]} g5 {[%emt 0:31:55]} 42. g3 {[%emt 0:00:19]} f6 {[%emt 0:00:00]} 43. Ke3 {[%emt 0:00:00]} Ke7 {[%emt 0:00:00]} 44. Ra3 {[%emt 0:00:00]} Kd6 {[%emt 0:00:00]} 45. Bd1 {[%emt 0:00:00]} Rb1 {[%emt 0:00:00]} 46. Kd2 {[%emt 0:00:00]} e5 {[%emt 0:00:00]} 47. Kc2 {[%emt 0:00:00]} Rb8 {[%emt 0:00:00]} 48. Kc3 {[%emt 0:00:00]} Rc8 {[%emt 0:00:00]} 49. dxe5+ {[%emt 0:00:00]} fxe5 {[%emt 0:00:00]} 50. Kd2 {[%emt 0:00:00]} Rf8 {[%emt 0:00:00]} 51. f3 {[%emt 0:00:00]} Rh8 {[%emt 0:01:01]} 52. Ke3 {[%emt 0:00:00]} Rh2 {[%emt 0:01:04]} 53. Ra8 {[%emt 0:00:00]} d4+ {[%emt 0:00:07]} 0-1

[Event "26th OIBM 2023"]
[Site "Gmund am Tegernsee"]
[Date "2023.10.31"]
[Round "4.34"]
[White "Lagarde, Maxime"]
[Black "Heigermoser, Robert"]
[Result "1-0"]
[ECO "E04"]
[WhiteElo "2626"]
[BlackElo "2133"]
[Annotator "TA"]
[PlyCount "47"]
[EventDate "2023.10.04"]
[EventType "swiss"]
[EventCountry "GER"]
[SourceTitle "playchess.com"]
[Source "ChessBase"]
[SourceQuality "1"]
[TimeControl "40/5400+30:1800+30"]

{[%evp 10,47,26,-4,91,34,48,48,31,34,53,31,126,127,116,30,170,181,177,149,140,135,212,212,305,294,451,479,436,335,435,452,430,444,551,554,538,350,782,774]} 1. d4 {[%emt 0:00:03]} d5 {[%emt 0:00:20]} 2. c4 {[%emt 0:00:22]} e6 {[%emt 0:00:28]} 3. Nf3 {[%emt 0:00:23]} Nf6 {[%emt 0:00:22]} 4. g3 {[%emt 0:00:04]} dxc4 {[%emt 0:02:24]} 5. Bg2 {[%emt 0:00:57]} Nbd7 {[%emt 0:00:33]} 6. Nbd2 {[%emt 0:04:22]} Bb4 {[%emt 0:15:57] [#] E04: Open Catalan: 5 Nf3.} (6... b5 $11 {keeps the balance.}) 7. O-O {[%emt 0:02:31]} (7. a3 $1 $16 {[%cal Ra3b4]} Be7 8. Nxc4) 7... c3 $14 {[%emt 0:09:30]} 8. bxc3 {[%emt 0:00:13]} Bxc3 {[%emt 0:00:06] White is slightly better.} 9. Rb1 {[%emt 0:03:20] [#]} a5 $146 {[%emt 0:08:48]} ({Predecessor:} 9... O-O 10. Qc2 Bxd2 11. Bxd2 Re8 12. a4 a5 13. Rfc1 Nb6 14. Qxc7 Qxc7 15. Rxc7 Nfd5 {1-0 Gorshtein,I (2456)-Zakhartsov,V (2531) Novi Sad TS Mix 242nd 2022 (3)}) 10. a3 {[%emt 0:11:20] Strongly threatening Nc4.} Nb6 {[%emt 0:09:59] [#] Repels Nc4} (10... Bxd2 $14 11. Qxd2 (11. Bxd2 Ne4 $11) 11... Ra7) 11. Nc4 $1 $16 {[%emt 0:03:00][%mdl 576] Nxb6 is the strong threat. Decoy} a4 {[%emt 0:08:10]} 12. Qc2 {[%emt 0:08:30]} (12. Nxb6 $16 cxb6 13. Qd3) 12... Ba5 {[%emt 0:08:53] [#] Black cannot hold the game after this.} (12... Nxc4 $11 13. Qxc3 Na5) 13. Nxa5 $1 $18 {[%emt 0:00:24]} Rxa5 {[%emt 0:00:08]} 14. Bd2 {[%emt 0:00:14][%cal Bc1d2,Bd2b4,Bb4c3][%mdl 32]} Ra6 {[%emt 0:04:11]} 15. Rfc1 {[%emt 0:02:07][%mdl 1024] White has strong compensation. White has more active pieces. The black rooks are badly placed.} c6 {[%emt 0:01:55]} (15... O-O $16 16. Qxc7 Qxc7 17. Rxc7 Nbd5) 16. e4 {[%emt 0:01:11] Black is weak on the dark squares} h6 {[%emt 0:02:59]} (16... O-O $142 17. e5 Nfd5) 17. Bb4 {[%emt 0:02:07]} Ng8 {[%emt 0:06:18]} (17... Qc7 $142 18. Ne5 Nfd7) 18. Bf1 {[%emt 0:03:07]} ({Weaker is} 18. Qc5 Nd7 19. Qc3 Ne7 $16) 18... Ra8 {[%emt 0:00:53]} 19. Re1 {[%emt 0:03:29]} ({Not} 19. Qc5 Nd7 20. Qd6 Ngf6 $18) 19... Nd7 {[%emt 0:05:45]} 20. d5 {[%emt 0:00:13]} c5 {[%emt 0:00:46]} 21. Bc3 {[%emt 0:01:48]} ({Much less strong is} 21. Bxc5 Ne7 22. Bd6 O-O $18) 21... Ngf6 {[%emt 0:02:00]} 22. dxe6 {[%emt 0:00:19]} fxe6 {[%emt 0:00:06]} 23. Bc4 {[%emt 0:00:15] Threatens to win with e5. A strong pair of Bishops.} Nb6 $2 {[%emt 0:02:32]} (23... Qe7 24. Nh4 O-O) 24. Red1 {[%emt 0:00:52] Weighted Error Value: White=0.27 (precise) /Black=0.64} 1-0

[Event "26th OIBM 2023"]
[Site "Gmund am Tegernsee"]
[Date "2023.10.31"]
[Round "4.35"]
[White "Petrov, Nikita"]
[Black "Kotyk, Michael"]
[Result "1-0"]
[ECO "D02"]
[WhiteElo "2551"]
[BlackElo "2127"]
[Annotator "TA"]
[PlyCount "53"]
[EventDate "2023.10.04"]
[EventType "swiss"]
[EventCountry "GER"]
[SourceTitle "playchess.com"]
[Source "ChessBase"]
[SourceQuality "1"]
[TimeControl "40/5400+30:1800+30"]

{[%evp 9,52,-16,0,0,8,-4,46,18,9,-10,-13,-40,36,29,40,39,57,22,138,96,116,62,62,68,66,54,72,54,314,297,316,291,270,173,657,644,635,618,615,593,2881,2397,29995,29996,29999]} 1. d4 {[%emt 0:00:04]} d5 {[%emt 0:00:06]} 2. Nf3 {[%emt 0:00:06]} e6 {[%emt 0:00:11]} 3. Bg5 {[%emt 0:01:24]} Be7 {[%emt 0:00:38]} 4. h4 {[%emt 0:00:45]} Nf6 {[%emt 0:08:40]} 5. e3 {[%emt 0:00:09]} Ne4 {[%emt 0:01:26][%cal Re4g5]} 6. Bxe7 {[%emt 0:02:49] D02: 1 d4 d5 2 Nf3 sidelines, including 2...Nf6 3 g3 and 2...Nf6 3 Bf4.} Qxe7 {[%emt 0:00:06] [#]} ({Resist} 6... Kxe7 7. Nbd2 $14) 7. Nbd2 $146 {[%emt 0:00:10]} ({Predecessor:} 7. Bd3 Nf6 8. Nbd2 Nc6 9. c3 Bd7 10. Qe2 e5 11. dxe5 Nxe5 12. Nxe5 Qxe5 13. Nf3 {1-0 Fleischer,M (1788)-Molsner,H (1535) MVP-ch Seniors op 13th 2013 (5)}) 7... Qb4 {[%emt 0:03:14]} (7... O-O $11) 8. Bd3 {[%emt 0:08:30] White is slightly better.} (8. Rb1 $5 {[%cal Rc2c3]}) 8... Nxd2 {[%emt 0:06:07]} 9. Nxd2 {[%emt 0:02:50]} c5 {[%emt 0:05:35]} 10. Rb1 {[%emt 0:31:26]} c4 {[%emt 0:09:11]} ({Black should play} 10... cxd4 $15 11. Qg4 O-O) 11. c3 $14 {[%emt 0:00:48]} Qe7 {[%emt 0:01:55]} 12. Bc2 {[%emt 0:00:16]} Nc6 {[%emt 0:01:45]} 13. e4 {[%emt 0:04:37]} e5 {[%emt 0:06:25]} (13... O-O $11) 14. O-O {[%emt 0:01:01]} Be6 {[%emt 0:08:56]} 15. exd5 {[%emt 0:12:03]} (15. f4 $16) 15... Bxd5 {[%emt 0:00:11]} 16. Re1 $36 {[%emt 0:00:02][%mdl 2048] White has some pressure.} (16. dxe5 {feels hotter.} Qxh4 17. f4 O-O-O 18. Qe2) 16... Qxh4 {[%emt 0:08:57]} 17. b3 {[%emt 0:02:14]} cxb3 {[%emt 0:07:15]} 18. Bxb3 {[%emt 0:00:20]} O-O-O $2 {[%emt 0:02:51][%mdl 8192] This costs Black the game.} (18... Bxb3 $14 19. Qxb3 O-O) 19. Bxd5 $18 {[%emt 0:06:52]} Rxd5 {[%emt 0:00:04]} 20. Qb3 {[%emt 0:05:44][%csl LRb7,LRd5]} Rd7 {[%emt 0:01:21]} 21. Nc4 {[%emt 0:01:25]} (21. Nf3 Qd8 $16) 21... exd4 $2 {[%emt 0:05:07] [#]} (21... Qe7 22. d5 (22. dxe5 Kb8 $16) (22. Nxe5 Nxe5 23. Rxe5 Qd6 $16) 22... Rxd5) 22. Nd6+ $1 {[%emt 0:00:07][%cal Bc4d6,Bd6b7,Bb7c5,Bc5a6,Ba6c7][%mdl 608] Discovered Attack, Double Attack} Kb8 {[%emt 0:00:02]} 23. Nxb7 {[%emt 0:00:10] White wants to mate with Na5+.} Ka8 {[%emt 0:00:02]} 24. Nc5 {[%emt 0:02:25]} Rc7 {[%emt 0:02:31]} 25. Na6 {[%emt 0:00:26][%cal Ra6c7]} Rd7 {[%emt 0:00:22] [#]} 26. Qd5 $3 {[%emt 0:00:47][%mdl 576] Deflection} Rxd5 {[%emt 0:00:20]} (26... Qf6 27. Qxd7) 27. Nc7# {[%emt 0:00:04] Beautiful play by Petrov!   Weighted Error Value: White=0.14 (very precise) /Black=0.99} 1-0

[Event "26th OIBM 2023"]
[Site "Gmund am Tegernsee"]
[Date "2023.10.31"]
[Round "4.36"]
[White "Meissner, Felix"]
[Black "Mohylnyi, Stepan"]
[Result "1/2-1/2"]
[ECO "C01"]
[WhiteElo "2382"]
[BlackElo "2120"]
[Annotator "RC"]
[PlyCount "105"]
[EventDate "2023.10.04"]
[EventType "swiss"]
[EventCountry "GER"]
[SourceTitle "playchess.com"]
[Source "ChessBase"]
[SourceQuality "1"]
[TimeControl "40/5400+30:1800+30"]

1. e4 {[%emt 0:00:03]} e6 {[%emt 0:00:04]} 2. d4 {[%emt 0:00:05]} d5 {[%emt 0:00:04]} 3. exd5 {[%emt 0:00:11]} exd5 {[%emt 0:00:03]} 4. Nf3 {[%emt 0:00:09]} Bd6 {[%emt 0:00:10]} 5. Bd3 {[%emt 0:00:11]} Ne7 {[%emt 0:00:05]} 6. O-O {[%emt 0:00:28]} Nbc6 {[%emt 0:00:46]} 7. Nc3 {[%emt 0:03:56]} Bg4 {[%emt 0:04:14]} 8. Nb5 {[%emt 0:00:50]} a6 {[%emt 0:00:28]} 9. Nxd6+ {[%emt 0:00:18]} Qxd6 {[%emt 0:00:07]} 10. c3 {[%emt 0:00:49]} Bf5 {[%emt 0:03:30]} 11. Bxf5 {[%emt 0:03:47]} Nxf5 {[%emt 0:00:12]} 12. Re1+ {[%emt 0:00:44]} Nfe7 {[%emt 0:00:22]} 13. Nh4 {[%emt 0:07:58]} Qd7 {[%emt 0:17:30]} 14. Qh5 {[%emt 0:02:04]} O-O {[%emt 0:20:40]} 15. Bf4 {[%emt 0:01:33]} Ng6 {[%emt 0:00:35]} 16. Bg3 {[%emt 0:03:34]} Nxh4 {[%emt 0:02:34]} 17. Qxh4 {[%emt 0:00:06]} Rfe8 {[%emt 0:02:33]} 18. Qf4 {[%emt 0:00:26]} Rac8 {[%emt 0:01:15]} 19. f3 {[%emt 0:01:02]} Ne7 {[%emt 0:02:43]} 20. h3 {[%emt 0:03:35]} c6 {[%emt 0:02:35]} 21. a4 {[%emt 0:00:56]} Ng6 {[%emt 0:01:59]} 22. Qd2 {[%emt 0:05:37]} Rxe1+ {[%emt 0:08:10]} 23. Rxe1 {[%emt 0:01:46]} Re8 {[%emt 0:00:05]} 24. Rxe8+ {[%emt 0:01:20]} Qxe8 {[%emt 0:00:07]} 25. Qc2 {[%emt 0:01:42]} b5 {[%emt 0:11:07]} 26. a5 {[%emt 0:01:01]} Qd8 {[%emt 0:04:51]} 27. Qf5 {[%emt 0:02:20]} Nf8 {[%emt 0:00:12]} 28. b4 {[%emt 0:01:08]} f6 {[%emt 0:00:13]} 29. Kh2 {[%emt 0:01:50]} Kf7 {[%emt 0:02:16]} 30. h4 {[%emt 0:01:04]} g6 {[%emt 0:03:42]} 31. Qf4 {[%emt 0:02:58]} Ne6 {[%emt 0:02:04]} 32. Qh6 {[%emt 0:01:14]} Kg8 {[%emt 0:00:04]} 33. Qe3 {[%emt 0:01:08]} Kf7 {[%emt 0:01:19]} 34. Kg1 {[%emt 0:00:50]} h5 {[%emt 0:00:45]} 35. Kf1 {[%emt 0:05:49]} Qe7 {[%emt 0:02:14]} 36. Kf2 {[%emt 0:04:07]} Qd8 {[%emt 0:02:04]} 37. Bh2 {[%emt 0:01:42]} Qh8 {[%emt 0:01:07]} 38. Kf1 {[%emt 0:00:54]} Qh7 {[%emt 0:00:50]} 39. Bf4 {[%emt 0:03:15]} Qg8 {[%emt 0:02:49]} 40. Kg1 {[%emt 0:04:38]} Qe8 {[%emt 0:02:22]} 41. Bg3 {[%emt 0:34:35]} Qe7 {[%emt 0:04:06]} 42. Qh6 {[%emt 0:00:00]} Ng7 {[%emt 0:00:42]} 43. Qf4 {[%emt 0:00:00]} Nf5 {[%emt 0:00:02]} 44. Kh2 {[%emt 0:00:00]} Ke6 {[%emt 0:06:00]} 45. Qb8 {[%emt 0:00:00]} Nxg3 {[%emt 0:00:30]} 46. Kxg3 {[%emt 0:00:00]} Qd6+ {[%emt 0:00:01]} 47. Qxd6+ {[%emt 0:00:00]} Kxd6 {[%emt 0:00:01]} 48. Kf4 {[%emt 0:00:00]} Ke7 {[%emt 0:03:27]} 49. g3 {[%emt 0:00:00]} Kf7 {[%emt 0:00:35]} 50. g4 {[%emt 0:00:00]} Ke6 {[%emt 0:00:14]} 51. Kg3 {[%emt 0:00:00]} f5 {[%emt 0:00:11]} 52. Kf4 {[%emt 0:00:00]} Kf6 {[%emt 0:00:05]} 53. g5+ {[%emt 0:35:17]} 1/2-1/2

[Event "26th OIBM 2023"]
[Site "Gmund am Tegernsee"]
[Date "2023.10.31"]
[Round "4.37"]
[White "Manish Anto Cristiano F"]
[Black "Marentini, Marcel"]
[Result "1-0"]
[ECO "B90"]
[WhiteElo "2368"]
[BlackElo "2116"]
[Annotator "RC"]
[PlyCount "61"]
[EventDate "2023.10.04"]
[EventType "swiss"]
[EventCountry "GER"]
[SourceTitle "playchess.com"]
[Source "ChessBase"]
[SourceQuality "1"]
[TimeControl "40/5400+30:1800+30"]

1. e4 {[%emt 0:00:04]} c5 {[%emt 0:00:09]} 2. Nf3 {[%emt 0:00:13]} d6 {[%emt 0:00:31]} 3. d4 {[%emt 0:00:23]} cxd4 {[%emt 0:00:10]} 4. Nxd4 {[%emt 0:00:08]} Nf6 {[%emt 0:00:08]} 5. Nc3 {[%emt 0:00:07]} a6 {[%emt 0:00:05]} 6. h3 {[%emt 0:00:43]} e5 {[%emt 0:00:48]} 7. Nb3 {[%emt 0:00:20]} Be6 {[%emt 0:01:13]} 8. f4 {[%emt 0:00:10]} Nc6 {[%emt 0:07:28]} 9. g4 {[%emt 0:04:16]} exf4 {[%emt 0:06:14]} 10. Bxf4 {[%emt 0:00:07]} Ne5 {[%emt 0:00:08]} 11. Qe2 {[%emt 0:02:36]} Qc7 {[%emt 0:03:11]} 12. O-O-O {[%emt 0:01:11]} Be7 {[%emt 0:04:05]} 13. Nd4 {[%emt 0:01:33]} g6 {[%emt 0:08:58]} 14. Kb1 {[%emt 0:01:32]} Nfd7 {[%emt 0:01:44]} 15. g5 {[%emt 0:05:28]} Rc8 {[%emt 0:04:38]} 16. Nd5 {[%emt 0:13:15]} Bxd5 {[%emt 0:03:09]} 17. exd5 {[%emt 0:01:43]} Qa5 {[%emt 0:11:00]} 18. Nb3 {[%emt 0:03:16]} Qc7 {[%emt 0:04:00]} 19. h4 {[%emt 0:01:09]} Bf8 {[%emt 0:09:49]} 20. h5 {[%emt 0:01:55]} Bg7 {[%emt 0:00:29]} 21. Nd4 {[%emt 0:13:27]} O-O {[%emt 0:01:57]} 22. hxg6 {[%emt 0:00:16]} hxg6 {[%emt 0:00:05]} 23. Bh3 {[%emt 0:05:41]} Rfe8 {[%emt 0:00:45]} 24. Qh2 {[%emt 0:00:26]} Rcd8 {[%emt 0:01:43]} 25. Ne6 {[%emt 0:03:35]} fxe6 {[%emt 0:00:51]} 26. Bxe6+ {[%emt 0:00:06]} Rxe6 {[%emt 0:02:37]} 27. Qh7+ {[%emt 0:00:06]} Kf8 {[%emt 0:02:43]} 28. dxe6 {[%emt 0:00:07]} Nc4 {[%emt 0:05:09]} 29. e7+ {[%emt 0:01:55]} Kf7 {[%emt 0:00:25]} 30. exd8=N+ {[%emt 0:00:10]} Qxd8 {[%emt 0:04:15]} 31. Rhf1 {[%emt 0:01:34]} 1-0